[Event "Skol-SM i Schack 2024, Grupp A"]
[Site "Arena Varberg, Kattegattsvagen 26, Varberg, Sweden"]
[Date "2024.10.12"]
[Round "3.10"]
[White "Sniegon, Filip"]
[Black "Emanuelsson, Aron"]
[Result "0-1"]
[TimeControl "45 minutes + 10 seconds per move from move one."]
[WhiteFideId "1778277"]
[BlackFideId "1780069"]
[WhiteElo "1684"]
[BlackElo "1720"]

1. d4 {[%clk 00:45:17]} {[%emt 00:00:03]} d5 {[%clk 00:45:19]} 2. c4 {[%emt
00:00:02]} c6 3. Nc3 {[%clk 00:45:33]} {[%emt 00:00:02]} Nf6 {[%clk 00:45:37]}
{[%emt 00:00:01]} 4. Bg5 {[%clk 00:45:41]} {[%emt 00:00:02]} Ne4 {[%clk
00:45:36]} {[%emt 00:00:11]} 5. Nxe4 {[%clk 00:45:18]} {[%emt 00:00:32]} dxe4
{[%clk 00:45:44]} {[%emt 00:00:03]} 6. e3 {[%clk 00:45:14]} {[%emt 00:00:14]}
Qa5+ {[%clk 00:45:11]} {[%emt 00:00:44]} 7. Qd2 {[%clk 00:44:30]} {[%emt
00:00:53]} Qxg5 {[%clk 00:45:16]} {[%emt 00:00:05]} 8. Nh3 {[%clk 00:44:31]}
{[%emt 00:00:09]} Bxh3 {[%clk 00:44:59]} {[%emt 00:00:27]} 9. gxh3 {[%clk
00:44:38]} {[%emt 00:00:03]} e6 {[%clk 00:44:59]} {[%emt 00:00:09]} 10. O-O-O
{[%clk 00:43:39]} {[%emt 00:01:09]} Nd7 {[%clk 00:44:35]} {[%emt 00:00:35]} 11.
Be2 {[%clk 00:41:17]} {[%emt 00:02:32]} O-O-O {[%clk 00:44:21]} {[%emt
00:00:23]} 12. f3 {[%clk 00:39:51]} {[%emt 00:01:36]} exf3 {[%clk 00:43:02]}
{[%emt 00:01:30]} 13. Bxf3 {[%clk 00:39:59]} {[%emt 00:00:02]} g6 {[%clk
00:41:35]} {[%emt 00:01:37]} 14. Rhg1 {[%clk 00:38:32]} {[%emt 00:01:37]} Qe7
{[%clk 00:41:27]} {[%emt 00:00:18]} 15. Qa5 {[%clk 00:34:35]} {[%emt 00:04:07]}
Kb8 {[%clk 00:39:47]} {[%emt 00:01:50]} 16. c5 {[%clk 00:33:59]} {[%emt
00:00:45]} Nxc5 {[%clk 00:34:13]} {[%emt 00:05:45]} 17. dxc5 {[%clk 00:32:10]}
{[%emt 00:01:59]} Qxc5+ {[%clk 00:33:59]} {[%emt 00:00:24]} 18. Qxc5 {[%clk
00:32:18]} {[%emt 00:00:02]} Bxc5 {[%clk 00:34:05]} {[%emt 00:00:04]} 19. Rxd8+
{[%clk 00:28:47]} {[%emt 00:03:40]} Rxd8 {[%clk 00:34:14]} {[%emt 00:00:02]} 20.
Kc2 {[%clk 00:28:55]} {[%emt 00:00:02]} Bxe3 {[%clk 00:33:45]} {[%emt
00:00:38]} 21. Rg2 {[%clk 00:29:02]} {[%emt 00:00:03]} Kc7 {[%clk 00:33:31]}
{[%emt 00:00:24]} 22. Re2 {[%clk 00:28:33]} {[%emt 00:00:39]} Bf4 {[%clk
00:33:02]} {[%emt 00:00:39]} 23. Kc3 {[%clk 00:27:10]} {[%emt 00:01:33]} e5
{[%clk 00:32:30]} {[%emt 00:00:43]} 24. Be4 {[%clk 00:25:41]} {[%emt 00:01:38]}
f5 {[%clk 00:32:28]} {[%emt 00:00:13]} 25. Bc2 {[%clk 00:25:48]} {[%emt
00:00:02]} e4 {[%clk 00:32:27]} {[%emt 00:00:10]} 26. Bb3 {[%clk 00:25:45]}
{[%emt 00:00:14]} Rd3+ {[%clk 00:32:17]} {[%emt 00:00:20]} 27. Kc2 {[%clk
00:25:36]} {[%emt 00:00:19]} Rxh3 {[%clk 00:32:22]} {[%emt 00:00:06]} 28. Bg8
{[%clk 00:25:19]} {[%emt 00:00:26]} Bxh2 {[%clk 00:32:13]} {[%emt 00:00:19]} 29.
Be6 {[%clk 00:24:43]} {[%emt 00:00:46]} Bf4 {[%clk 00:31:16]} {[%emt 00:01:08]}
30. Re1 {[%clk 00:24:09]} {[%emt 00:00:44]} Rd3 {[%clk 00:31:06]} {[%emt
00:00:19]} 31. Rf1 {[%clk 00:23:33]} {[%emt 00:00:45]} Be5 {[%clk 00:30:53]}
{[%emt 00:00:24]} 32. Rh1 {[%clk 00:23:20]} {[%emt 00:00:24]} h5 {[%clk
00:30:45]} {[%emt 00:00:17]} 33. Bf7 {[%clk 00:22:51]} {[%emt 00:00:39]} Rg3
{[%clk 00:30:36]} {[%emt 00:00:19]} 34. b4 {[%clk 00:21:46]} {[%emt 00:01:16]}
f4 {[%clk 00:30:20]} {[%emt 00:00:25]} 35. Kd2 {[%clk 00:21:24]} {[%emt
00:00:32]} f3 {[%clk 00:29:41]} {[%emt 00:00:50]} 36. Ke3 {[%clk 00:21:06]}
{[%emt 00:00:27]} Bd6 {[%clk 00:29:03]} {[%emt 00:00:49]} 37. Kxe4 {[%clk
00:20:45]} {[%emt 00:00:31]} Bxb4 {[%clk 00:28:53]} {[%emt 00:00:19]} 38. Rd1
{[%clk 00:20:16]} {[%emt 00:00:39]} f2 {[%clk 00:28:31]} {[%emt 00:00:32]} 39.
Rf1 {[%clk 00:18:57]} {[%emt 00:01:29]} Bc5 {[%clk 00:28:08]} {[%emt 00:00:34]}
40. Kf4 {[%clk 00:19:00]} {[%emt 00:00:06]} Rg1 {[%clk 00:27:31]} {[%emt
00:00:47]} 41. Bc4 {[%clk 00:19:08]} {[%emt 00:00:02]} h4 {[%clk 00:27:38]}
{[%emt 00:00:04]} 0-1

[Event "Skol-SM i Schack 2024, Grupp A"]
[Site "Arena Varberg, Kattegattsvagen 26, Varberg, Sweden"]
[Date "2024.10.12"]
[Round "5.2"]
[White "Frank, Anton"]
[Black "Fridman, Arvid"]
[Result "1/2-1/2"]
[TimeControl "45 minutes + 10 seconds per move from move one."]
[WhiteTitle "CM"]
[WhiteFideId "1752383"]
[BlackFideId "1758632"]
[WhiteElo "2110"]
[BlackElo "1895"]

1. e4 {[%clk 00:44:59]} {[%emt 00:00:20]} b6 {[%clk 00:44:46]} {[%emt
00:00:36]} 2. d4 {[%clk 00:44:54]} {[%emt 00:00:15]} Bb7 {[%clk 00:44:54]}
{[%emt 00:00:02]} 3. Bd3 {[%clk 00:44:37]} {[%emt 00:00:26]} e6 {[%clk
00:44:39]} {[%emt 00:00:25]} 4. Nf3 {[%clk 00:44:29]} {[%emt 00:00:17]} d5
{[%clk 00:43:20]} {[%emt 00:01:30]} 5. e5 {[%clk 00:44:28]} {[%emt 00:00:11]}
c5 {[%clk 00:40:19]} {[%emt 00:03:11]} 6. c3 {[%clk 00:44:35]} {[%emt
00:00:03]} c4 {[%clk 00:35:57]} {[%emt 00:04:33]} 7. Bc2 {[%clk 00:41:27]}
{[%emt 00:03:17]} Be7 {[%clk 00:30:45]} {[%emt 00:05:22]} 8. a4 {[%clk
00:36:25]} {[%emt 00:05:12]} h5 {[%clk 00:27:59]} {[%emt 00:02:57]} 9. b3
{[%clk 00:35:20]} {[%emt 00:01:14]} cxb3 {[%emt 00:03:08]} 10. Bxb3 {[%clk
00:35:20]} {[%emt 00:00:09]} Ba6 {[%clk 00:24:54]} {[%emt 00:00:19]} 11. Bc2
{[%clk 00:34:49]} {[%emt 00:00:40]} Nc6 {[%clk 00:22:39]} {[%emt 00:02:26]} 12.
Bd3 {[%clk 00:34:34]} {[%emt 00:00:25]} Qc8 {[%clk 00:21:24]} {[%emt 00:01:25]}
13. Bb5 {[%clk 00:33:07]} {[%emt 00:01:37]} Bxb5 {[%clk 00:19:42]} {[%emt
00:01:53]} 14. axb5 {[%clk 00:33:15]} {[%emt 00:00:02]} Na5 {[%clk 00:19:23]}
{[%emt 00:00:29]} 15. O-O {[%clk 00:33:11]} {[%emt 00:00:13]} Qc4 {[%clk
00:17:11]} {[%emt 00:02:22]} 16. Qa4 {[%clk 00:32:19]} {[%emt 00:01:02]} Rc8
{[%clk 00:16:19]} {[%emt 00:01:02]} 17. Qxc4 {[%clk 00:30:50]} {[%emt
00:01:40]} Rxc4 {[%clk 00:16:26]} 18. Nfd2 {[%clk 00:30:57]} {[%emt 00:00:04]}
Rc7 {[%clk 00:15:58]} {[%emt 00:00:38]} 19. Bb2 {[%clk 00:27:09]} {[%emt
00:03:58]} Nh6 {[%clk 00:15:46]} {[%emt 00:00:22]} 20. Ra4 {[%clk 00:25:42]}
{[%emt 00:01:38]} Kd7 {[%clk 00:13:25]} {[%emt 00:02:31]} 21. Na3 {[%clk
00:25:18]} {[%emt 00:00:34]} Rhc8 {[%clk 00:12:46]} {[%emt 00:00:48]} 22. Nc2
{[%clk 00:24:47]} {[%emt 00:00:41]} Nf5 {[%clk 00:12:08]} {[%emt 00:00:48]} 23.
Nb4 {[%clk 00:21:58]} {[%emt 00:02:59]} g6 {[%clk 00:08:18]} {[%emt 00:04:01]}
24. Rfa1 {[%clk 00:19:37]} {[%emt 00:02:31]} Ng7 {[%clk 00:07:49]} {[%emt
00:00:39]} 25. Kf1 {[%clk 00:18:17]} {[%emt 00:01:29]} Ne8 {[%clk 00:07:39]}
{[%emt 00:00:21]} 26. Nc6 {[%clk 00:14:57]} {[%emt 00:03:29]} Nxc6 {[%clk
00:06:56]} {[%emt 00:00:54]} 27. bxc6+ {[%clk 00:15:06]} Kxc6 {[%clk 00:06:10]}
{[%emt 00:00:55]} 28. Rxa7 {[%clk 00:15:14]} {[%emt 00:00:02]} Rxa7 {[%clk
00:05:31]} {[%emt 00:00:49]} 29. Rxa7 {[%clk 00:15:23]} {[%emt 00:00:02]} Nc7
{[%clk 00:05:41]} 30. Ke2 {[%clk 00:14:26]} {[%emt 00:01:07]} Ra8 {[%clk
00:05:25]} {[%emt 00:00:25]} 31. Rxa8 Nxa8 {[%clk 00:05:35]} 32. Kd3 {[%clk
00:14:28]} {[%emt 00:00:15]} b5 {[%clk 00:05:25]} {[%emt 00:00:20]} 33. Nf3
{[%clk 00:14:25]} {[%emt 00:00:13]} Nb6 {[%clk 00:05:02]} {[%emt 00:00:33]} 34.
Bc1 {[%clk 00:14:25]} {[%emt 00:00:10]} Kd7 {[%clk 00:04:50]} {[%emt 00:00:22]}
35. Kc2 {[%clk 00:13:03]} {[%emt 00:01:32]} b4 {[%clk 00:04:43]} {[%emt
00:00:17]} 36. Bd2 {[%clk 00:12:11]} {[%emt 00:01:02]} 1/2-1/2

[Event "Skol-SM i Schack 2024, Grupp A"]
[Site "Arena Varberg, Kattegattsvagen 26, Varberg, Sweden"]
[Date "2024.10.12"]
[Round "6.6"]
[White "Schriever-Abeln, Marius"]
[Black "Walter, Fridolf"]
[Result "1-0"]
[TimeControl "45 minutes + 10 seconds per move from move one."]
[WhiteFideId "1752650"]
[BlackFideId "1753347"]
[WhiteElo "2009"]
[BlackElo "1708"]

1. d4 {[%clk 00:45:18]} {[%emt 00:00:02]} d5 {[%clk 00:45:07]} {[%emt
00:01:05]} 2. c4 {[%clk 00:45:27]} {[%emt 00:00:02]} e6 {[%clk 00:45:00]}
{[%emt 00:00:34]} 3. Nc3 {[%clk 00:45:36]} {[%emt 00:00:02]} Nf6 {[%clk
00:44:54]} {[%emt 00:00:16]} 4. cxd5 {[%clk 00:45:44]} {[%emt 00:00:01]} exd5
{[%clk 00:44:48]} {[%emt 00:00:16]} 5. Bg5 {[%clk 00:45:52]} {[%emt 00:00:02]}
Be7 {[%clk 00:44:34]} {[%emt 00:00:24]} 6. e3 {[%clk 00:46:00]} {[%emt
00:00:03]} c6 {[%clk 00:44:04]} {[%emt 00:00:38]} 7. Bd3 {[%clk 00:46:07]}
{[%emt 00:00:04]} Bg4 {[%clk 00:43:30]} {[%emt 00:00:44]} 8. Nge2 {[%clk
00:44:35]} {[%emt 00:01:42]} Nbd7 {[%clk 00:42:45]} {[%emt 00:00:55]} 9. O-O
{[%clk 00:44:07]} {[%emt 00:00:37]} O-O {[%clk 00:42:03]} {[%emt 00:00:52]} 10.
Qc2 {[%clk 00:43:25]} {[%emt 00:00:54]} Bh5 {[%clk 00:40:53]} {[%emt 00:01:19]}
11. f3 {[%clk 00:42:17]} {[%emt 00:01:18]} Bg6 {[%clk 00:33:45]} {[%emt
00:07:19]} 12. Rad1 {[%clk 00:38:02]} {[%emt 00:04:24]} Qa5 {[%clk 00:29:33]}
{[%emt 00:04:22]} 13. Bh4 {[%clk 00:36:32]} {[%emt 00:01:41]} c5 {[%clk
00:24:18]} {[%emt 00:05:24]} 14. dxc5 {[%clk 00:32:22]} {[%emt 00:04:20]} Bxc5
{[%clk 00:23:49]} {[%emt 00:00:39]} 15. Bf2 {[%clk 00:31:57]} {[%emt 00:00:36]}
Rac8 {[%clk 00:21:37]} {[%emt 00:02:20]} 16. Qb3 {[%clk 00:24:30]} {[%emt
00:07:39]} Bxd3 {[%clk 00:16:32]} {[%emt 00:05:15]} 17. Rxd3 {[%clk 00:24:05]}
{[%emt 00:00:35]} Ne5 {[%clk 00:14:25]} {[%emt 00:02:16]} 18. Rdd1 {[%clk
00:23:23]} {[%emt 00:00:52]} Nc4 {[%clk 00:11:22]} {[%emt 00:03:12]} 19. Nxd5
{[%clk 00:18:27]} {[%emt 00:05:07]} Nxd5 {[%clk 00:11:04]} {[%emt 00:00:28]} 20.
Rxd5 {[%clk 00:14:09]} {[%emt 00:04:29]} b5 {[%clk 00:10:06]} {[%emt 00:01:07]}
21. Rfd1 {[%clk 00:12:27]} {[%emt 00:01:52]} Rfe8 {[%clk 00:08:58]} {[%emt
00:01:17]} 22. Nd4 {[%clk 00:06:20]} {[%emt 00:06:18]} a6 {[%clk 00:07:47]}
{[%emt 00:01:21]} 23. Nf5 {[%clk 00:04:46]} {[%emt 00:01:44]} g6 {[%emt
00:02:07]} 24. Nd4 {[%clk 00:04:32]} {[%emt 00:00:06]} Qb6 {[%clk 00:04:49]}
{[%emt 00:01:29]} 25. h4 {[%clk 00:03:33]} {[%emt 00:01:09]} Qf6 {[%clk
00:03:42]} {[%emt 00:01:16]} 26. Rc1 {[%clk 00:02:10]} {[%emt 00:01:33]} h6
{[%clk 00:01:25]} {[%emt 00:02:28]} 27. Qc3 {[%clk 00:01:33]} {[%emt 00:00:47]}
Bb6 {[%clk 00:00:51]} {[%emt 00:00:43]} 28. Qb3 {[%clk 00:00:52]} {[%emt
00:00:51]} Kg7 {[%clk 00:00:30]} {[%emt 00:00:31]} 29. Rd1 {[%clk 00:00:47]}
{[%emt 00:00:16]} Bc7 {[%clk 00:00:21]} {[%emt 00:00:18]} 30. Rd7 {[%clk
00:00:16]} {[%emt 00:00:41]} Nb6 {[%clk 00:00:17]} {[%emt 00:00:14]} 31. Ne2
{[%clk 00:00:12]} {[%emt 00:00:15]} Nxd7 {[%clk 00:00:22]} {[%emt 00:00:04]} 32.
Rxd7 {[%clk 00:00:22]} {[%emt 00:00:01]} Red8 {[%clk 00:00:23]} {[%emt
00:00:08]} 33. Rd4 {[%clk 00:00:24]} {[%emt 00:00:08]} Bb6 {[%clk 00:00:29]}
{[%emt 00:00:04]} 34. Rd3 {[%clk 00:00:23]} {[%emt 00:00:11]} Rxd3 {[%clk
00:00:34]} {[%emt 00:00:05]} 35. Qxd3 {[%clk 00:00:32]} {[%emt 00:00:01]} Qxb2
{[%clk 00:00:37]} {[%emt 00:00:06]} 36. Bg3 {[%clk 00:00:38]} {[%emt 00:00:05]}
Rc2 {[%clk 00:00:36]} {[%emt 00:00:11]} 37. Qd6 {[%clk 00:00:31]} {[%emt
00:00:18]} Bxe3+ {[%clk 00:00:38]} {[%emt 00:00:08]} 38. Kh2 {[%clk 00:00:40]}
Qb1 {[%clk 00:00:13]} {[%emt 00:00:34]} 39. Be5+ {[%clk 00:00:45]} {[%emt
00:00:05]} Kh7 {[%clk 00:00:11]} {[%emt 00:00:12]} 40. Qf6 {[%clk 00:00:46]}
{[%emt 00:00:10]} Bf4+ {[%clk 00:00:11]} {[%emt 00:00:10]} 41. Nxf4 {[%clk
00:00:41]} {[%emt 00:00:14]} 1-0

[Event "Skol-SM i Schack 2024, Grupp A"]
[Site "Arena Varberg, Kattegattsvagen 26, Varberg, Sweden"]
[Date "2024.10.12"]
[Round "3.11"]
[White "Abdulkader, Ahmad"]
[Black "Wingh, Walter"]
[Result "1-0"]
[TimeControl "45 minutes + 10 seconds per move from move one."]
[WhiteFideId "1776550"]
[BlackFideId "1767836"]
[WhiteElo "1613"]
[BlackElo "1612"]

1. e4 {[%clk 00:40:17]} {[%emt 00:05:03]} e6 {[%clk 00:45:18]} {[%emt
00:00:03]} 2. c4 {[%clk 00:40:25]} {[%emt 00:00:02]} d5 {[%clk 00:45:20]}
{[%emt 00:00:09]} 3. cxd5 {[%clk 00:40:33]} {[%emt 00:00:01]} exd5 {[%clk
00:45:28]} {[%emt 00:00:02]} 4. exd5 {[%clk 00:40:42]} {[%emt 00:00:01]} Qxd5
{[%clk 00:45:37]} {[%emt 00:00:01]} 5. Nc3 {[%clk 00:40:51]} {[%emt 00:00:01]}
Qd8 {[%clk 00:45:33]} {[%emt 00:00:14]} 6. d4 {[%clk 00:40:59]} {[%emt
00:00:02]} Nf6 {[%clk 00:45:05]} {[%emt 00:00:38]} 7. Bc4 {[%clk 00:41:04]}
{[%emt 00:00:05]} Bf5 {[%clk 00:44:14]} {[%emt 00:01:00]} 8. Nf3 {[%clk
00:41:10]} {[%emt 00:00:04]} Bd6 {[%clk 00:43:42]} {[%emt 00:00:43]} 9. O-O
{[%clk 00:41:07]} {[%emt 00:00:13]} O-O {[%clk 00:43:48]} {[%emt 00:00:02]} 10.
Bg5 {[%clk 00:40:07]} {[%emt 00:01:11]} Nbd7 {[%clk 00:42:12]} {[%emt
00:01:47]} 11. Re1 {[%clk 00:37:37]} {[%emt 00:02:40]} c6 {[%clk 00:31:28]}
{[%emt 00:10:53]} 12. Ne5 {[%clk 00:24:35]} {[%emt 00:13:13]} Qc7 {[%clk
00:26:08]} {[%emt 00:05:29]} 13. f4 {[%clk 00:20:15]} {[%emt 00:04:30]} c5
{[%clk 00:24:33]} {[%emt 00:01:46]} 14. Kh1 {[%clk 00:15:29]} {[%emt 00:04:56]}
cxd4 {[%clk 00:18:44]} {[%emt 00:05:58]} 15. Nb5 {[%clk 00:14:32]} {[%emt
00:01:07]} Qb6 {[%clk 00:11:52]} {[%emt 00:07:02]} 16. Nxd7 {[%clk 00:13:02]}
{[%emt 00:01:40]} Bxd7 {[%clk 00:07:32]} {[%emt 00:04:30]} 17. Qxd4 {[%clk
00:09:59]} {[%emt 00:03:13]} Bc5 {[%clk 00:06:10]} {[%emt 00:01:32]} 18. Qd3
{[%clk 00:08:11]} {[%emt 00:01:58]} Bxb5 {[%clk 00:02:54]} {[%emt 00:03:26]} 19.
Bxb5 {[%clk 00:08:14]} {[%emt 00:00:07]} Ng4 {[%clk 00:02:55]} {[%emt
00:00:09]} 20. Bh4 {[%clk 00:08:16]} {[%emt 00:00:09]} Bf2 {[%clk 00:02:52]}
{[%emt 00:00:13]} 21. Qf3 {[%clk 00:07:32]} {[%emt 00:00:53]} Bxh4 {[%clk
00:01:51]} {[%emt 00:01:11]} 22. Qxg4 {[%clk 00:07:27]} {[%emt 00:00:15]} Bxe1
{[%clk 00:01:57]} {[%emt 00:00:04]} 23. Bd3 {[%clk 00:07:16]} {[%emt 00:00:21]}
Bb4 {[%clk 00:01:30]} {[%emt 00:00:37]} 24. Rf1 {[%clk 00:06:56]} {[%emt
00:00:30]} Rfe8 {[%clk 00:01:29]} {[%emt 00:00:12]} 25. Qh3 {[%clk 00:06:49]}
{[%emt 00:00:17]} Qh6 {[%clk 00:01:32]} {[%emt 00:00:07]} 26. Qg3 {[%clk
00:06:58]} Re7 {[%clk 00:01:12]} {[%emt 00:00:29]} 27. h3 {[%clk 00:06:54]}
{[%emt 00:00:14]} Rae8 {[%clk 00:01:12]} {[%emt 00:00:10]} 28. Kh2 {[%clk
00:07:02]} {[%emt 00:00:03]} Bd2 {[%clk 00:01:15]} {[%emt 00:00:07]} 29. Qf2
{[%clk 00:06:53]} {[%emt 00:00:18]} Ba5 {[%clk 00:01:00]} {[%emt 00:00:25]} 30.
Bb5 {[%clk 00:06:28]} {[%emt 00:00:35]} Rd8 {[%clk 00:00:51]} {[%emt 00:00:19]}
31. Qc5 {[%clk 00:06:29]} {[%emt 00:00:09]} Qd6 {[%clk 00:00:33]} {[%emt
00:00:28]} 32. Qg5 {[%clk 00:06:22]} {[%emt 00:00:17]} Bc7 {[%clk 00:00:29]}
{[%emt 00:00:14]} 33. Bc4 {[%clk 00:06:03]} {[%emt 00:00:29]} Qf6 {[%clk
00:00:20]} {[%emt 00:00:19]} 34. Qc5 {[%clk 00:06:00]} {[%emt 00:00:13]} Bxf4+
{[%clk 00:00:21]} {[%emt 00:00:09]} 35. Kh1 {[%clk 00:06:09]} {[%emt 00:00:02]}
Bd6 {[%clk 00:00:17]} {[%emt 00:00:14]} 36. Qa5 {[%clk 00:06:12]} {[%emt
00:00:06]} Qd4 {[%clk 00:00:12]} {[%emt 00:00:16]} 37. Qxd8+ {[%emt 00:00:11]}
1-0

[Event "Skol-SM i Schack 2024, Grupp A"]
[Site "Arena Varberg, Kattegattsvagen 26, Varberg, Sweden"]
[Date "2024.10.12"]
[Round "5.3"]
[White "Kleist, Axel"]
[Black "Eriksson, Wilmer"]
[Result "1-0"]
[TimeControl "45 minutes + 10 seconds per move from move one."]
[WhiteFideId "1764322"]
[BlackFideId "1768298"]
[WhiteElo "1912"]
[BlackElo "1849"]

1. e4 {[%clk 00:45:19]} {[%emt 00:00:01]} c5 {[%clk 00:45:01]} {[%emt
00:00:19]} 2. Nf3 {[%clk 00:45:13]} {[%emt 00:00:16]} e6 {[%clk 00:45:05]}
{[%emt 00:00:05]} 3. d4 {[%clk 00:45:11]} {[%emt 00:00:13]} cxd4 {[%clk
00:45:08]} {[%emt 00:00:07]} 4. Nxd4 {[%clk 00:44:57]} {[%emt 00:00:24]} Nf6
{[%clk 00:45:12]} {[%emt 00:00:06]} 5. Nc3 {[%clk 00:45:01]} {[%emt 00:00:06]}
Nc6 {[%clk 00:45:18]} {[%emt 00:00:04]} 6. Be3 {[%clk 00:44:11]} {[%emt
00:00:59]} Bb4 {[%clk 00:45:24]} {[%emt 00:00:04]} 7. Bd3 {[%clk 00:34:23]}
{[%emt 00:09:58]} d5 {[%clk 00:45:25]} {[%emt 00:00:09]} 8. Nxc6 {[%clk
00:32:31]} {[%emt 00:02:02]} bxc6 {[%clk 00:45:34]} {[%emt 00:00:02]} 9. e5
{[%clk 00:32:31]} {[%emt 00:00:10]} d4 {[%clk 00:39:09]} {[%emt 00:06:35]} 10.
exf6 {[%clk 00:32:03]} {[%emt 00:00:37]} dxe3 {[%clk 00:39:17]} {[%emt
00:00:02]} 11. fxg7 {[%clk 00:31:17]} {[%emt 00:00:57]} exf2+ {[%clk 00:39:19]}
{[%emt 00:00:07]} 12. Kf1 {[%clk 00:26:59]} {[%emt 00:04:28]} Rg8 {[%clk
00:36:46]} {[%emt 00:02:44]} 13. Qg4 {[%clk 00:23:04]} {[%emt 00:04:05]} Bxc3
{[%clk 00:34:52]} {[%emt 00:02:03]} 14. bxc3 {[%clk 00:22:45]} {[%emt
00:00:29]} Qf6 {[%clk 00:30:08]} {[%emt 00:04:54]} 15. Qc4 {[%clk 00:20:53]}
{[%emt 00:02:02]} Bd7 {[%clk 00:22:56]} {[%emt 00:07:22]} 16. Bxh7 {[%clk
00:19:24]} {[%emt 00:01:38]} Rxg7 {[%clk 00:22:54]} {[%emt 00:00:13]} 17. Be4
{[%clk 00:19:23]} {[%emt 00:00:11]} Rc8 {[%clk 00:20:46]} {[%emt 00:02:18]} 18.
Bf3 {[%clk 00:17:50]} {[%emt 00:01:43]} Qf5 {[%clk 00:06:36]} {[%emt 00:14:20]}
19. Qd3 {[%clk 00:16:47]} {[%emt 00:01:13]} Qc5 {[%clk 00:05:07]} {[%emt
00:01:38]} 20. h4 {[%clk 00:14:34]} {[%emt 00:02:24]} Ke7 {[%clk 00:04:36]}
{[%emt 00:00:41]} 21. Rd1 {[%clk 00:14:22]} {[%emt 00:00:21]} Rd8 {[%clk
00:02:26]} {[%emt 00:02:20]} 22. h5 {[%clk 00:14:25]} {[%emt 00:00:08]} f5
{[%clk 00:01:27]} {[%emt 00:01:08]} 23. h6 {[%clk 00:13:12]} {[%emt 00:01:23]}
Rh7 {[%clk 00:01:26]} {[%emt 00:00:12]} 24. Qd2 {[%clk 00:12:58]} {[%emt
00:00:23]} Kf6 {[%clk 00:01:15]} {[%emt 00:00:21]} 25. Qf4 {[%clk 00:11:30]}
{[%emt 00:01:38]} Rg8 {[%clk 00:00:55]} {[%emt 00:00:30]} 26. Qh4+ {[%clk
00:09:56]} {[%emt 00:01:44]} Rg5 {[%clk 00:00:58]} {[%emt 00:00:07]} 27. Rxd7
{[%clk 00:08:50]} {[%emt 00:01:16]} Rxd7 {[%clk 00:01:04]} {[%emt 00:00:04]} 28.
h7 {[%clk 00:08:54]} {[%emt 00:00:07]} Rxh7 {[%clk 00:00:21]} {[%emt 00:00:53]}
29. Qxh7 {[%clk 00:08:54]} {[%emt 00:00:10]} Qe3 {[%clk 00:00:19]} {[%emt
00:00:11]} 30. Qh8+ {[%clk 00:07:32]} {[%emt 00:01:32]} Rg7 {[%clk 00:00:13]}
{[%emt 00:00:16]} 31. Qh6+ {[%clk 00:06:33]} {[%emt 00:01:09]} Qxh6 {[%clk
00:00:13]} {[%emt 00:00:10]} 32. Rxh6+ {[%clk 00:06:38]} {[%emt 00:00:05]} Ke5
{[%clk 00:00:18]} {[%emt 00:00:05]} 33. Kxf2 {[%clk 00:06:24]} {[%emt
00:00:23]} Rb7 {[%clk 00:00:26]} {[%emt 00:00:03]} 34. Bxc6 {[%clk 00:05:07]}
{[%emt 00:01:27]} Rb2 {[%clk 00:00:32]} {[%emt 00:00:05]} 35. Ba4 {[%clk
00:05:08]} {[%emt 00:00:08]} Rxa2 {[%clk 00:00:23]} {[%emt 00:00:19]} 36. Bb3
{[%clk 00:05:17]} Ra6 {[%clk 00:00:31]} {[%emt 00:00:02]} 37. Rh4 {[%clk
00:03:55]} {[%emt 00:01:32]} Rc6 {[%clk 00:00:20]} {[%emt 00:00:22]} 38. Rc4
{[%clk 00:03:28]} {[%emt 00:00:36]} Rd6 {[%clk 00:00:28]} {[%emt 00:00:02]} 39.
Ra4 {[%clk 00:03:26]} {[%emt 00:00:12]} a6 {[%clk 00:00:30]} {[%emt 00:00:09]}
40. Ke3 {[%clk 00:02:40]} {[%emt 00:00:56]} Rc6 {[%clk 00:00:26]} {[%emt
00:00:13]} 41. Bc4 {[%clk 00:01:50]} {[%emt 00:01:01]} f4+ {[%clk 00:00:31]}
{[%emt 00:00:04]} 42. Kd2 {[%clk 00:01:57]} {[%emt 00:00:03]} Rd6+ {[%clk
00:00:21]} {[%emt 00:00:21]} 43. Bd3 {[%clk 00:02:05]} Rd7 {[%clk 00:00:22]}
{[%emt 00:00:08]} 44. Re4+ {[%clk 00:01:48]} {[%emt 00:00:28]} Kf6 {[%clk
00:00:15]} {[%emt 00:00:17]} 45. Rxf4+ {[%clk 00:01:56]} {[%emt 00:00:02]} Ke5
{[%clk 00:00:23]} {[%emt 00:00:02]} 46. Re4+ {[%clk 00:01:55]} {[%emt
00:00:11]} Kf6 {[%clk 00:00:32]} {[%emt 00:00:01]} 47. Ra4 {[%clk 00:01:57]}
{[%emt 00:00:08]} Rg7 {[%clk 00:00:37]} {[%emt 00:00:05]} 48. Be4 {[%clk
00:01:12]} {[%emt 00:00:55]} Ke5 {[%clk 00:00:42]} {[%emt 00:00:06]} 49. Bf3
{[%emt 00:00:07]} Rd7+ {[%clk 00:00:42]} {[%emt 00:00:09]} 50. Ke3 {[%clk
00:01:22]} {[%emt 00:00:02]} Rc7 {[%clk 00:00:47]} {[%emt 00:00:05]} 51. Kd3
{[%clk 00:01:08]} {[%emt 00:00:24]} Rd7+ {[%clk 00:00:53]} {[%emt 00:00:04]} 52.
Rd4 {[%clk 00:01:17]} {[%emt 00:00:01]} Rc7 {[%clk 00:00:58]} {[%emt 00:00:06]}
53. Re4+ {[%clk 00:01:25]} Kf5 {[%clk 00:01:05]} {[%emt 00:00:03]} 54. Ra4
{[%clk 00:01:22]} {[%emt 00:00:14]} Rd7+ {[%clk 00:00:58]} {[%emt 00:00:16]} 55.
Kc4 {[%clk 00:01:30]} {[%emt 00:00:02]} Rd6 {[%clk 00:00:32]} {[%emt 00:00:37]}
56. Kb3 {[%clk 00:01:21]} {[%emt 00:00:18]} Rb6+ {[%clk 00:00:32]} {[%emt
00:00:10]} 57. Rb4 {[%clk 00:01:30]} Rd6 {[%clk 00:00:39]} {[%emt 00:00:03]} 58.
c4 {[%clk 00:01:35]} {[%emt 00:00:05]} e5 {[%clk 00:00:34]} {[%emt 00:00:15]}
59. c5 {[%clk 00:01:43]} {[%emt 00:00:02]} Rd8 {[%clk 00:00:40]} {[%emt
00:00:04]} 60. c6 {[%clk 00:01:33]} {[%emt 00:00:21]} Kf6 {[%clk 00:00:44]}
{[%emt 00:00:05]} 61. c7 {[%clk 00:01:32]} {[%emt 00:00:11]} Rc8 {[%clk
00:00:52]} {[%emt 00:00:02]} 62. Rc4 {[%clk 00:01:41]} {[%emt 00:00:02]} 1-0